fUST/lending_fUST_20250905
["ID","MTS","AMOUNT","RATE_DAILY","PERIOD"]
[383580937,1757005847409,-150.0,0.00014659,2]
[383580938,1757005847419,-975.0,0.00014659,2]
[383580939,1757005847429,-2153.0,0.00014659,2]
[383580940,1757005847439,-633.0,0.00014659,2]
[383580941,1757005847449,-480.0,0.00014692,2]
[383580942,1757005847459,-480.0,0.00014693,2]
[383580943,1757005847471,-480.0,0.00014866,2]
[383580944,1757005847480,-799.24,0.00014866,2]
[383580945,1757005847491,-480.0,0.00014866,2]
[383580946,1757005847500,-757.66,0.00014866,2]
[383580947,1757005847510,-582.45,0.00014866,2]
[383580948,1757005847521,-480.0,0.00014867,2]
[383580949,1757005847531,-480.0,0.00014867,2]
[383580950,1757005847541,-445.97030396,0.00014867,2]
[383580951,1757005847555,-480.0,0.00014867,2]
[383580952,1757005847565,-793.88,0.00014867,2]
[383580953,1757005847576,-480.0,0.00014867,2]
[383580954,1757005847585,-1009.62,0.00014867,2]
[383580955,1757005847596,-480.0,0.00014867,2]
[383580956,1757005847609,-260.33956518,0.00014867,2]
[383580957,1757005847619,-480.0,0.00014867,2]
[383580958,1757005847630,-480.0,0.00014867,2]
[383580959,1757005847640,-655.27,0.00014867,2]
[383580960,1757005847652,-480.0,0.00014867,2]
[383580961,1757005847662,-480.0,0.00014867,2]
[383580962,1757005847671,-480.0,0.00014867,2]
[383580963,1757005847681,-480.0,0.00014867,2]
[383580964,1757005847691,-480.0,0.00014867,2]
[383580965,1757005847700,-480.0,0.00014867,2]
[383580966,1757005847710,-480.0,0.00014867,2]
[383580967,1757005847720,-480.0,0.00014867,2]
[383580968,1757005847730,-782.82,0.00014867,2]
[383580969,1757005847740,-480.0,0.00014867,2]
[383580970,1757005847750,-480.0,0.00014867,2]
[383580971,1757005847760,-555.97,0.00014867,2]
[383580972,1757005847771,-480.0,0.00014867,2]
[383580973,1757005847781,-480.0,0.00014867,2]
[383580974,1757005847791,-480.0,0.00014867,2]
[383580975,1757005847802,-365.49166329,0.00014867,2]
[383580976,1757005847812,-480.0,0.00014867,2]
[383580977,1757005847822,-480.0,0.00014867,2]
[383580978,1757005847833,-480.0,0.00014867,2]
[383580979,1757005847843,-485.26,0.00014867,2]
[383580980,1757005847854,-807.53,0.00014867,2]
[383580981,1757005847863,-1527.94,0.00014867,2]
[383580982,1757005847873,-781.31,0.00014867,2]
[383580983,1757005847882,-480.0,0.00014867,2]
[383580984,1757005847892,-480.0,0.00014867,2]
[383580985,1757005847902,-480.0,0.00014867,2]
[383580986,1757005847912,-573.28,0.00014867,2]
[383580987,1757005847921,-480.0,0.00014867,2]
[383580988,1757005847931,-480.0,0.00014966,2]
[383580989,1757005847941,-381.85807845,0.00014967,2]
[383580990,1757005847950,-1000.0,0.00014995,2]
[383580991,1757005847959,-1000.0,0.00014995,2]
[383580992,1757005847969,-160.0,0.00015,2]
[383580993,1757005847981,-1000.0,0.00015022,2]
[383580994,1757005847991,-1000.0,0.00015041,2]
[383580995,1757005848001,-821.682,0.00015042,2]
[383580996,1757005848011,-1000.0,0.00015048,2]
[383580997,1757005848020,-1000.0,0.00015076,2]
[383580998,1757005848030,-1000.0,0.00015079,2]
[383580999,1757005848039,-1000.0,0.00015079,2]
[383581000,1757005848050,-1000.0,0.00015079,2]
[383581001,1757005848059,-420.0,0.00015088,2]
[383581002,1757005848069,-1000.0,0.00015117,2]
[383581003,1757005848079,-4884.60236129,0.00015139,2]
[383581004,1757005877177,1000.0,0.00020167,20]
[383581005,1757005880305,500.0,0.00024,120]
[383581006,1757005881141,225.26,0.00024,120]
[383581007,1757005911837,525.82655981,0.0001525,6]
[383581008,1757005912863,1000.0,0.00018694,20]
[383581009,1757005913347,1000.0,0.00020564,20]
[383581010,1757005913819,244.0,0.00020564,20]
[383581011,1757005954481,319.2745905,0.00013311,2]
[383581012,1757006263219,469.92434261,0.00013533,2]
[383581014,1757006286826,169.92434261,0.00013533,2]
[383581015,1757006309416,169.92434261,0.00013533,2]
[383581016,1757006317605,163.5151821,0.00013598,2]
[383581017,1757006332850,169.92434261,0.00013533,2]
[383581018,1757006356032,420.49591262,0.00013533,2]
[383581019,1757006384826,169.92434261,0.00013598,2]
[383581028,1757006717105,169.92434259,0.00013598,2]
[383581030,1757006779887,1341.0,0.000136,2]
[383581033,1757006838057,163.5151821,0.00013598,2]
[383581034,1757006969661,1429.0,0.00027,120]
[383581091,1757007032433,-300.0,0.0001367,2]
[383581093,1757007032443,-500.0,0.00013671,2]
[383581095,1757007032453,-214.52599537,0.00013671,2]
[383581097,1757007032463,-500.0,0.00013671,2]
[383581099,1757007032472,-500.0,0.00013671,2]
[383581101,1757007032482,-500.0,0.00013671,2]
[383581103,1757007032491,-500.0,0.00013671,2]
[383581105,1757007032500,-318.72599163,0.00013671,2]
[383581107,1757007032510,-500.0,0.00013671,2]
[383581108,1757007032519,-500.0,0.00013671,2]
[383581110,1757007032528,-500.0,0.00013671,2]
[383581112,1757007032538,-500.0,0.00013671,2]
[383581114,1757007032547,-500.0,0.00013671,2]
[383581116,1757007032556,-500.0,0.00013671,2]
[383581118,1757007032566,-324.03956666,0.00013671,2]
[383581120,1757007032575,-55645.50792843,0.00013672,2]
[383581663,1757007043716,-46976.89378283,0.00013672,2]
[383581666,1757007043733,-143608.2357781,0.00013672,2]
[383581764,1757007045511,169.92434259,0.00013598,2]
[383581820,1757007082832,300.0,0.00013534,2]
[383581821,1757007099751,300.0,0.00013534,2]
[383581822,1757007107576,300.0,0.00013534,2]
[383581823,1757007123113,300.0,0.00013534,2]
[383581824,1757007131083,300.0,0.00013533,2]
[383581825,1757007146933,300.0,0.00013533,2]
[383581826,1757007155036,300.0,0.00013533,2]
[383581827,1757007171029,300.0,0.00013533,2]
[383581828,1757007178897,300.0,0.00013533,2]
[383581829,1757007194664,300.0,0.00013534,2]
[383581830,1757007203180,300.0,0.00013534,2]
[383581831,1757007219179,300.0,0.00013534,2]
[383581832,1757007227517,300.0,0.00013534,2]
[383581833,1757007243396,2531.03187439,0.00013535,2]
[383581834,1757007251659,300.0,0.00013534,2]
[383581835,1757007267670,300.0,0.00013534,2]
[383581836,1757007269277,7071.23067442,0.00013598,2]
[383581838,1757007275751,300.0,0.00013534,2]
[383581839,1757007292322,300.0,0.00013534,2]
[383581840,1757007298648,163.5151821,0.00013599,2]
[383581841,1757007300677,300.0,0.00013534,2]
[383581844,1757007323999,829.79170542,0.00013559,2]
[383581856,1757007433889,57627.45015489,0.00013598,2]
[383581857,1757007518781,163.5151821,0.00013599,2]
[383581863,1757007692789,104453.0,0.00013,2]
[383581865,1757007945300,194.25130323,0.00013599,2]
[383581897,1757008232611,-348.09904854,0.00013672,2]
[383581899,1757008232620,-300.0,0.00013697,2]
[383581901,1757008232630,-300.0,0.00013697,2]
[383581904,1757008232641,-300.0,0.00013697,2]
[383581907,1757008232650,-1200.0,0.00013697,2]
[383581910,1757008232660,-480.0,0.00013698,2]
[383581913,1757008232670,-480.0,0.00013698,2]
[383581916,1757008232680,-480.0,0.00013698,2]
[383581919,1757008232691,-480.0,0.00013698,2]
[383581922,1757008232700,-480.0,0.00013698,2]
[383581925,1757008232709,-480.0,0.00013698,2]
[383581927,1757008232719,-480.0,0.00013698,2]
[383581929,1757008232729,-480.0,0.00013698,2]
[383581931,1757008232739,-480.0,0.00013698,2]
[383581933,1757008232748,-518.75,0.00013698,2]
[383581935,1757008232758,-480.0,0.00013698,2]
[383581937,1757008232767,-599.81,0.00013698,2]
[383581939,1757008232777,-480.0,0.00013698,2]
[383581941,1757008232787,-480.0,0.00013698,2]
[383581943,1757008232797,-480.0,0.00013698,2]
[383581945,1757008232806,-480.0,0.00013698,2]
[383581947,1757008232816,-480.0,0.00013698,2]
[383581949,1757008232826,-480.5,0.00013698,2]
[383581951,1757008232836,-619.74,0.00013698,2]
[383581953,1757008232846,-480.0,0.00013698,2]
[383581955,1757008232855,-480.0,0.00013698,2]
[383581957,1757008232864,-480.0,0.00013698,2]
[383581959,1757008232874,-480.0,0.00013698,2]
[383581961,1757008232883,-480.0,0.00013698,2]
[383581963,1757008232893,-480.0,0.00013698,2]
[383581965,1757008232903,-480.0,0.00013698,2]
[383581967,1757008232912,-219.17324692,0.00013698,2]
[383581970,1757008232921,-280.7940186,0.00013698,2]
[383581973,1757008232931,-252.041302,0.00013698,2]
[383581975,1757008232941,-480.0,0.00013698,2]
[383581976,1757008232950,-639.29,0.00013698,2]
[383581977,1757008232960,-480.0,0.00013698,2]
[383581978,1757008232969,-480.0,0.00013698,2]
[383581980,1757008232979,-480.0,0.00013698,2]
[383581982,1757008232989,-618.54,0.00013698,2]
[383581984,1757008232998,-480.0,0.00013698,2]
[383581986,1757008233007,-632.73,0.00013698,2]
[383581988,1757008233017,-480.0,0.00013698,2]
[383581990,1757008233027,-480.0,0.00013698,2]
[383581992,1757008233037,-799.29,0.00013698,2]
[383581994,1757008233046,-480.0,0.00013698,2]
[383581995,1757008233055,-626.67275504,0.00013698,2]
[383582081,1757008240830,-582.93724496,0.00013698,2]
[383582083,1757008240840,-480.0,0.00013698,2]
[383582086,1757008240849,-628.49,0.00013698,2]
[383582089,1757008240859,-480.0,0.00013698,2]
[383582091,1757008240868,-480.0,0.00013698,2]
[383582093,1757008240877,-480.0,0.00013698,2]
[383582095,1757008240886,-598.75575482,0.00013698,2]
[383582097,1757008240896,-480.0,0.00013698,2]
[383582099,1757008240905,-574.82,0.00013698,2]
[383582101,1757008240914,-6446.13128439,0.00013698,2]
[383582103,1757008240928,-8454.26980479,0.00013698,2]
[383582105,1757008240938,-819.44092,0.00013699,2]
[383582107,1757008240947,-500.0,0.00013699,2]
[383582109,1757008240956,-480.0,0.00013972,2]
[383582111,1757008240966,-547.59,0.00013972,2]
[383582113,1757008240975,-480.0,0.00013972,2]
[383582115,1757008240984,-480.0,0.00013972,2]
[383582117,1757008240993,-608.71,0.00013972,2]
[383582119,1757008241002,-480.0,0.00013972,2]
[383582121,1757008241011,-576.07,0.00013972,2]
[383582123,1757008241020,-518.75,0.00013972,2]
[383582125,1757008241029,-480.0,0.00013972,2]
[383582127,1757008241038,-620.0,0.00013972,2]
[383582129,1757008241047,-480.0,0.00013972,2]
[383582131,1757008241056,-480.0,0.00013972,2]
[383582133,1757008241066,-480.0,0.00013972,2]
[383582135,1757008241075,-480.0,0.00013972,2]
[383582137,1757008241084,-480.5,0.00013972,2]
[383582139,1757008241093,-619.74,0.00013972,2]
[383582141,1757008241102,-480.0,0.00013972,2]
[383582143,1757008241112,-480.0,0.00013972,2]
[383582145,1757008241121,-480.0,0.00013972,2]
[383582147,1757008241130,-480.0,0.00013972,2]
[383582149,1757008241139,-480.0,0.00013972,2]
[383582151,1757008241149,-480.0,0.00013972,2]
[383582153,1757008241158,-480.0,0.00013972,2]
[383582155,1757008241167,-639.29,0.00013972,2]
[383582157,1757008241176,-480.0,0.00013972,2]
[383582159,1757008241186,-480.0,0.00013972,2]
[383582161,1757008241195,-480.0,0.00013972,2]
[383582163,1757008241205,-618.54,0.00013972,2]
[383582165,1757008241214,-480.0,0.00013972,2]
[383582167,1757008241223,-632.73,0.00013972,2]
[383582169,1757008241233,-480.0,0.00013972,2]
[383582171,1757008241242,-799.29,0.00013972,2]
[383582173,1757008241251,-480.0,0.00013972,2]
[383582175,1757008241260,-1209.61,0.00013972,2]
[383582177,1757008241270,-480.0,0.00013972,2]
[383582179,1757008241279,-628.49,0.00013972,2]
[383582181,1757008241289,-480.0,0.00013972,2]
[383582183,1757008241298,-480.0,0.00013972,2]
[383582185,1757008241307,-480.0,0.00013972,2]
[383582187,1757008241317,-480.0,0.00013972,2]
[383582189,1757008241327,-574.82,0.00013972,2]
[383582191,1757008241337,-151.0,0.00013972,2]
[383582193,1757008241346,-172.25185898,0.00013972,2]
[383582195,1757008241356,-319.36884787,0.00013972,2]
[383582197,1757008241365,-151.0,0.00013972,2]
[383582200,1757008241375,-500.0,0.00013972,2]
[383582202,1757008241384,-151.0,0.00013972,2]
[383582204,1757008241394,-500.05897361,0.00013972,2]
[383582206,1757008241403,-151.0,0.00013972,2]
[383582208,1757008241413,-151.0,0.00013972,2]
[383582210,1757008241422,-151.0,0.00013972,2]
[383582212,1757008241432,-151.0,0.00013972,2]
[383582214,1757008241441,-98.56709565,0.00013972,2]
[383582430,1757008243833,-52.43290435,0.00013972,2]
[383582432,1757008243843,-151.0,0.00013972,2]
[383582434,1757008243853,-187.78006525,0.00013972,2]
[383582436,1757008243863,-151.0,0.00013972,2]
[383582437,1757008243871,-151.0,0.00013972,2]
[383582438,1757008243880,-151.0,0.00013972,2]
[383582439,1757008243890,-151.0,0.00013972,2]
[383582440,1757008243899,-151.0,0.00013972,2]
[383582441,1757008243909,-151.26354934,0.00013972,2]
[383582442,1757008243918,-500.0,0.00013973,2]
[383582443,1757008243927,-3000.0,0.0001404,2]
[383582444,1757008243937,-300.0,0.00014045,2]
[383582445,1757008243946,-300.0,0.00014045,2]
[383582446,1757008243955,-300.0,0.00014045,2]
[383582447,1757008243964,-300.0,0.00014045,2]
[383582448,1757008243974,-300.0,0.00014045,2]
[383582449,1757008243983,-300.0,0.00014045,2]
[383582450,1757008243993,-300.0,0.00014045,2]
[383582452,1757008244002,-300.0,0.00014045,2]
[383582454,1757008244012,-300.0,0.00014045,2]
[383582456,1757008244021,-300.0,0.00014045,2]
[383582458,1757008244031,-300.0,0.00014045,2]
[383582459,1757008244040,-300.0,0.00014045,2]
[383582460,1757008244050,-300.0,0.00014045,2]
[383582461,1757008244059,-300.0,0.00014045,2]
[383582462,1757008244070,-300.0,0.00014045,2]
[383582463,1757008244079,-600.0,0.00014045,2]
[383582464,1757008244089,-500.0,0.00014115,2]
[383582465,1757008244098,-500.0,0.00014115,2]
[383582466,1757008244107,-500.0,0.00014115,2]
[383582467,1757008244116,-500.0,0.00014115,2]
[383582468,1757008244125,-500.0,0.00014115,2]
[383582469,1757008244135,-500.0,0.00014115,2]
[383582470,1757008244145,-500.0,0.00014115,2]
[383582471,1757008244154,-500.0,0.00014115,2]
[383582472,1757008244163,-500.0,0.00014115,2]
[383582473,1757008244173,-500.0,0.00014115,2]
[383582474,1757008244182,-500.0,0.00014115,2]
[383582475,1757008244192,-500.0,0.00014115,2]
[383582476,1757008244201,-10567.6827771,0.00014117,2]
[383582477,1757008244210,-480.0,0.00014246,2]
[383582478,1757008244219,-480.0,0.00014246,2]
[383582479,1757008244229,-480.0,0.00014246,2]
[383582480,1757008244238,-480.0,0.00014246,2]
[383582481,1757008244247,-518.75,0.00014246,2]
[383582482,1757008244256,-480.0,0.00014246,2]
[383582483,1757008244265,-480.0,0.00014246,2]
[383582484,1757008244275,-480.0,0.00014246,2]
[383582485,1757008244284,-480.0,0.00014246,2]
[383582486,1757008244293,-480.0,0.00014246,2]
[383582487,1757008244303,-480.5,0.00014246,2]
[383582488,1757008244312,-619.74,0.00014246,2]
[383582489,1757008244322,-480.0,0.00014246,2]
[383582490,1757008244331,-480.0,0.00014246,2]
[383582491,1757008244340,-480.0,0.00014246,2]
[383582492,1757008244350,-480.0,0.00014246,2]
[383582493,1757008244359,-480.0,0.00014246,2]
[383582494,1757008244369,-480.0,0.00014246,2]
[383582495,1757008244379,-480.0,0.00014246,2]
[383582496,1757008244387,-639.29,0.00014246,2]
[383582497,1757008244397,-480.0,0.00014246,2]
[383582498,1757008244406,-480.0,0.00014246,2]
[383582499,1757008244416,-480.0,0.00014246,2]
[383582500,1757008244425,-618.54,0.00014246,2]
[383582501,1757008244434,-480.0,0.00014246,2]
[383582502,1757008244444,-632.73,0.00014246,2]
[383582503,1757008244453,-480.0,0.00014246,2]
[383582504,1757008244462,-799.29,0.00014246,2]
[383582505,1757008244471,-480.0,0.00014246,2]
[383582506,1757008244481,-1209.61,0.00014246,2]
[383582507,1757008244491,-480.0,0.00014246,2]
[383582508,1757008244500,-628.49,0.00014246,2]
[383582509,1757008244510,-480.0,0.00014246,2]
[383582510,1757008244519,-480.0,0.00014246,2]
[383582511,1757008244530,-383.14326529,0.00014246,2]
[383582512,1757008244539,-480.0,0.00014246,2]
[383582513,1757008244549,-574.82,0.00014246,2]
[383582514,1757008244558,-500.0,0.00014247,2]
[383582515,1757008244568,-217.5338025,0.0001425,2]
[383582516,1757008244578,-232.93421481,0.0001425,2]
[383582517,1757008244587,-417.15472785,0.0001425,2]
[383582518,1757008244600,-160.0,0.0001425,2]
[383582519,1757008244609,-160.0,0.0001425,2]
[383582520,1757008244619,-530.40833076,0.0001425,2]
[383582521,1757008244629,-846.4110323,0.0001425,2]
[383582522,1757008244639,-160.0,0.0001425,2]
[383582523,1757008244649,-480.0,0.0001452,2]
[383582524,1757008244658,-481.24843507,0.0001452,2]
[383582525,1757008244667,-480.0,0.0001452,2]
[383582526,1757008244679,-480.0,0.0001452,2]
[383582527,1757008244689,-518.75,0.0001452,2]
[383582528,1757008244698,-480.0,0.0001452,2]
[383582529,1757008244708,-154.8447912,0.0001452,2]
[383582530,1757008244717,-480.0,0.0001452,2]
[383582531,1757008244726,-480.0,0.0001452,2]
[383582532,1757008244736,-480.0,0.0001452,2]
[383582533,1757008244745,-480.5,0.0001452,2]
[383582534,1757008244755,-619.74,0.0001452,2]
[383582535,1757008244765,-480.0,0.0001452,2]
[383582536,1757008244775,-480.0,0.0001452,2]
[383582537,1757008244785,-480.0,0.0001452,2]
[383582538,1757008244795,-480.0,0.0001452,2]
[383582539,1757008244804,-480.0,0.0001452,2]
[383582540,1757008244814,-480.0,0.0001452,2]
[383582541,1757008244823,-480.0,0.0001452,2]
[383582542,1757008244833,-639.29,0.0001452,2]
[383582543,1757008244842,-480.0,0.0001452,2]
[383582544,1757008244852,-480.0,0.0001452,2]
[383582545,1757008244862,-461.34905878,0.0001452,2]
[383582546,1757008244872,-618.54,0.0001452,2]
[383582547,1757008244882,-480.0,0.0001452,2]
[383582548,1757008244892,-632.73,0.0001452,2]
[383582549,1757008244901,-480.0,0.0001452,2]
[383582550,1757008244911,-799.29,0.0001452,2]
[383582551,1757008244921,-480.0,0.0001452,2]
[383582552,1757008244930,-1209.61,0.0001452,2]
[383582553,1757008244939,-480.0,0.0001452,2]
[383582554,1757008244949,-628.49,0.0001452,2]
[383582555,1757008244959,-480.0,0.0001452,2]
[383582556,1757008244968,-480.0,0.0001452,2]
[383582557,1757008244977,-480.0,0.0001452,2]
[383582558,1757008244987,-574.82,0.0001452,2]
[383582559,1757008244996,-500.0,0.00014521,2]
[383582560,1757008245006,-975.0,0.00014591,2]
[383582561,1757008245015,-2153.0,0.00014591,2]
[383582562,1757008245025,-633.0,0.00014591,2]
[383582563,1757008245034,-791.6785951,0.000146,2]
[383582564,1757008245043,-388.3851953,0.000146,2]
[383582565,1757008245052,-388.3851953,0.000146,2]
[383582566,1757008245062,-388.3851953,0.000146,2]
[383582567,1757008245071,-520.0165151,0.00014794,2]
[383582568,1757008245080,-480.0,0.00014794,2]
[383582569,1757008245090,-325.62004558,0.00014794,2]
[383582570,1757008245099,-518.75,0.00014794,2]
[383582571,1757008245108,-480.0,0.00014794,2]
[383582572,1757008245117,-480.0,0.00014794,2]
[383582573,1757008245127,-480.0,0.00014794,2]
[383582574,1757008245136,-480.0,0.00014794,2]
[383582575,1757008245146,-480.5,0.00014794,2]
[383582576,1757008245156,-619.74,0.00014794,2]
[383582577,1757008245166,-480.0,0.00014794,2]
[383582578,1757008245176,-480.0,0.00014794,2]
[383582579,1757008245186,-480.0,0.00014794,2]
[383582580,1757008245195,-480.0,0.00014794,2]
[383582581,1757008245206,-170.27943266,0.00014794,2]
[383582582,1757008245215,-480.0,0.00014794,2]
[383582583,1757008245225,-480.0,0.00014794,2]
[383582584,1757008245235,-639.29,0.00014794,2]
[383582585,1757008245244,-480.0,0.00014794,2]
[383582586,1757008245254,-480.0,0.00014794,2]
[383582587,1757008245263,-618.54,0.00014794,2]
[383582588,1757008245274,-480.0,0.00014794,2]
[383582589,1757008245284,-632.73,0.00014794,2]
[383582590,1757008245295,-480.0,0.00014794,2]
[383582591,1757008245308,-799.29,0.00014794,2]
[383582592,1757008245319,-480.0,0.00014794,2]
[383582593,1757008245329,-1209.61,0.00014794,2]
[383582594,1757008245338,-480.0,0.00014794,2]
[383582595,1757008245348,-628.49,0.00014794,2]
[383582596,1757008245358,-480.0,0.00014794,2]
[383582597,1757008245367,-480.0,0.00014794,2]
[383582598,1757008245379,-480.0,0.00014794,2]
[383582599,1757008245388,-574.82,0.00014794,2]
[383582600,1757008245398,-500.0,0.00014795,2]
[383582601,1757008245407,-168.8179311,0.000148,2]
[383582602,1757008245417,-256.75999091,0.00014867,2]
[383582603,1757008245427,-1026.01292366,0.00014867,2]
[383582604,1757008245436,-319.98168113,0.00014867,2]
[383582605,1757008245447,-160.0,0.00015,2]
[383582606,1757008245456,-420.0,0.0001501,2]
[383582607,1757008245466,-480.0,0.00015068,2]
[383582608,1757008245475,-518.75,0.00015068,2]
[383582609,1757008245486,-324.8407,0.00015068,2]
[383582610,1757008245496,-287.06318669,0.00015068,2]
[383582611,1757008245506,-379.22277158,0.00015068,2]
[383582612,1757008245518,-480.0,0.00015068,2]
[383582613,1757008245527,-480.5,0.00015068,2]
[383582614,1757008245537,-619.74,0.00015068,2]
[383582615,1757008245547,-480.0,0.00015068,2]
[383582616,1757008245558,-257.23626978,0.00015068,2]
[383582617,1757008245570,-573.54,0.00015068,2]
[383582618,1757008245580,-480.0,0.00015068,2]
[383582619,1757008245590,-480.0,0.00015068,2]
[383582620,1757008245604,-480.0,0.00015068,2]
[383582621,1757008245615,-639.29,0.00015068,2]
[383582622,1757008245625,-480.0,0.00015068,2]
[383582623,1757008245635,-480.0,0.00015068,2]
[383582624,1757008245645,-618.54,0.00015068,2]
[383582625,1757008245654,-480.0,0.00015068,2]
[383582626,1757008245664,-632.73,0.00015068,2]
[383582627,1757008245675,-480.0,0.00015068,2]
[383582628,1757008245685,-799.29,0.00015068,2]
[383582629,1757008245695,-480.0,0.00015068,2]
[383582630,1757008245706,-1209.61,0.00015068,2]
[383582631,1757008245717,-480.0,0.00015068,2]
[383582632,1757008245727,-628.49,0.00015068,2]
[383582633,1757008245737,-480.0,0.00015068,2]
[383582634,1757008245746,-480.0,0.00015068,2]
[383582635,1757008245755,-480.0,0.00015068,2]
[383582636,1757008245765,-574.82,0.00015068,2]
[383582637,1757008245776,-500.0,0.00015069,2]
[383582638,1757008245786,-500.0,0.00015191,2]
[383582639,1757008245796,-500.0,0.00015191,2]
[383582640,1757008245805,-250.02,0.0001525,2]
[383582641,1757008245815,-500.0,0.00015305,2]
[383582642,1757008245825,-500.0,0.00015305,2]
[383582643,1757008245835,-500.0,0.00015341,2]
[383582644,1757008245845,-500.0,0.00015341,2]
[383582645,1757008245856,-166.15575365,0.00015341,2]
[383582646,1757008245866,-442.24477664,0.00015342,2]
[383582647,1757008245875,-181.157472,0.00015342,2]
[383582648,1757008245886,-518.75,0.00015342,2]
[383582649,1757008245896,-480.0,0.00015342,2]
[383582650,1757008245905,-480.5,0.00015342,2]
[383582651,1757008245915,-619.74,0.00015342,2]
[383582652,1757008245924,-480.0,0.00015342,2]
[383582653,1757008245935,-480.0,0.00015342,2]
[383582657,1757008246054,-480.0,0.00015342,2]
[383582658,1757008246065,-480.0,0.00015342,2]
[383582660,1757008246075,-639.29,0.00015342,2]
[383582661,1757008246085,-480.0,0.00015342,2]
[383582662,1757008246095,-480.0,0.00015342,2]
[383582663,1757008246106,-618.54,0.00015342,2]
[383582664,1757008246116,-480.0,0.00015342,2]
[383582666,1757008246126,-632.73,0.00015342,2]
[383582667,1757008246136,-480.0,0.00015342,2]
[383582668,1757008246147,-799.29,0.00015342,2]
[383582669,1757008246157,-480.0,0.00015342,2]
[383582670,1757008246166,-1209.61,0.00015342,2]
[383582671,1757008246176,-480.0,0.00015342,2]
[383582672,1757008246186,-628.49,0.00015342,2]
[383582673,1757008246195,-480.0,0.00015342,2]
[383582674,1757008246206,-480.0,0.00015342,2]
[383582675,1757008246216,-480.0,0.00015342,2]
[383582676,1757008246226,-574.82,0.00015342,2]
[383582678,1757008246235,-500.0,0.00015343,2]
[383582679,1757008246245,-500.0,0.00015398,2]
[383582680,1757008246256,-151.0,0.00015398,2]
[383582681,1757008246266,-151.0,0.00015398,2]
[383582682,1757008246275,-301.999999,0.00015398,2]
[383582684,1757008246285,-160.0,0.000154,2]
[383582685,1757008246295,-3000.0,0.0001541,2]
[383582686,1757008246305,-720.0,0.0001545,2]
[383582687,1757008246315,-518.75,0.00015616,2]
[383582688,1757008246325,-480.0,0.00015616,2]
[383582689,1757008246334,-480.5,0.00015616,2]
[383582690,1757008246345,-619.74,0.00015616,2]
[383582691,1757008246355,-480.0,0.00015616,2]
[383582692,1757008246366,-480.0,0.00015616,2]
[383582693,1757008246377,-480.0,0.00015616,2]
[383582694,1757008246387,-480.0,0.00015616,2]
[383582695,1757008246397,-639.29,0.00015616,2]
[383582696,1757008246408,-480.0,0.00015616,2]
[383582697,1757008246418,-480.0,0.00015616,2]
[383582698,1757008246430,-618.54,0.00015616,2]
[383582699,1757008246440,-480.0,0.00015616,2]